bitfinex/quotes_ETHUSD_20241203
["timestamp","ask_amount","ask_price","bid_price","bid_amount"]
[1733235368709,0.03508245,3563.3,3561.8,1.5685]
[1733235369069,0.03508245,3563.3,3560.6,5.54994515]
[1733235369070,0.55,3563.0,3561.7,2.80763]
[1733235369350,0.55,3563.0,3562.0,2.80734]
[1733235369518,4.592,3563.1,3562.1,2.80732]
[1733235369519,1.592,3563.1,3562.1,2.80732]
[1733235369722,1.592,3563.1,3562.2,0.02342603]
[1733235370047,1.592,3563.1,3561.6,2.80772]
[1733235370203,3.0,3564.1,3561.7,0.47300843]
[1733235370406,1.6157,3564.0,3563.2,2.80643]
[1733235370610,1.6157,3564.0,3563.3,0.02340184]
[1733235370857,1.6157,3564.0,3562.8,2.80673]
[1733235371167,1.6157,3564.0,3562.9,0.02340055]
[1733235371346,1.6157,3564.9,3563.0,0.28301405]
[1733235371657,1.6157,3564.9,3564.3,2.80559]
[1733235371947,1.6157,3564.9,3564.4,0.02338202]
[1733235372136,1.6157,3564.9,3563.3,1.6648]
[1733235372137,1.6157,3564.9,3563.8,2.80597]
[1733235372345,1.6157,3564.9,3563.4,2.8063]
[1733235372649,1.77727,3564.9,3563.8,2.80595]
[1733235372851,1.77727,3564.9,3563.5,0.44711]
[1733235373008,1.6157,3564.9,3563.6,0.02338757]
[1733235373208,1.6157,3564.9,3563.7,2.80607]
[1733235373610,1.6157,3564.9,3564.0,2.80581]
[1733235373944,1.621,3565.5,3563.4,2.80623]
[1733235374113,3.95209055,3565.4,3563.5,0.447103]
[1733235374331,1.621,3565.5,3563.7,11.62607]
[1733235374528,1.621,3565.5,3564.3,2.80555]
[1733235374866,1.621,3565.5,3563.5,0.02337282]
[1733235375070,1.621,3565.5,3563.5,2.80622]
[1733235375254,1.621,3565.5,3563.3,4.4711]
[1733235375455,1.621,3565.3,3563.6,2.80615]
[1733235375633,1.621,3565.1,3563.4,0.44711]
[1733235375837,1.621,3565.1,3563.5,2.80621]
[1733235375838,0.55,3565.0,3563.5,2.80621]
[1733235376036,0.55,3565.0,3563.3,1.6648]
[1733235376266,4.621,3565.1,3563.8,2.80597]
[1733235376447,1.621,3565.1,3563.9,0.02338879]
[1733235376650,1.621,3565.1,3564.3,2.80557]
[1733235376865,1.621,3565.1,3564.3,0.280557]
[1733235377172,1.621,3565.1,3564.4,0.02337856]
[1733235377330,1.621,3565.1,3564.4,2.80549]
[1733235377529,1.621,3565.1,3564.2,2.80566]
[1733235377873,1.621,3565.1,3564.0,2.80583]
[1733235378166,4.39003557,3566.2,3564.5,2.80539]
[1733235378167,1.6008,3566.1,3564.5,2.80539]
[1733235378365,1.6008,3565.9,3564.6,0.280539]
[1733235378565,1.5716,3565.6,3563.9,2.80584]
[1733235378764,1.5716,3565.5,3564.1,2.80573]
[1733235378968,1.5716,3565.5,3563.7,1.6522]
[1733235379128,1.5716,3565.5,3564.1,2.80572]
[1733235379325,4.5716,3565.3,3563.9,2.80589]
[1733235379624,1.5716,3565.0,3563.3,1.5945]
[1733235379854,1.5716,3565.0,3563.9,2.80583]
[1733235380022,1.5716,3565.0,3564.0,0.0233839]
[1733235380235,1.5716,3565.0,3564.5,2.80543]
[1733235380475,1.5716,3565.0,3564.7,2.80527]
[1733235380654,1.536,3565.9,3564.8,0.02337189]
[1733235380965,1.536,3565.9,3564.9,2.80512]
[1733235381163,1.536,3565.9,3564.2,0.02336428]
[1733235381372,1.536,3565.9,3565.3,2.80479]
[1733235381585,1.536,3565.9,3564.4,2.80552]
[1733235381586,1.536,3565.9,3564.5,0.02335993]
[1733235381724,1.536,3565.9,3564.9,2.80507]
[1733235381932,1.536,3565.9,3564.6,0.28288799]
[1733235381933,1.536,3565.9,3565.1,2.80494]
[1733235382136,1.536,3565.9,3565.2,0.02336102]
[1733235382366,4.39003557,3567.2,3564.8,1.5833]
[1733235382584,1.5304,3567.1,3565.5,2.80465]
[1733235382739,1.5304,3567.1,3564.8,1.5833]
[1733235382740,1.5595,3566.9,3565.6,0.280465]
[1733235382939,1.5595,3566.9,3565.5,2.80464]
[1733235383275,1.5595,3566.9,3565.5,2.80465]
[1733235383480,1.5595,3566.9,3565.6,2.8045]
[1733235383697,1.5595,3566.9,3565.9,2.80433]
[1733235383978,1.5595,3566.9,3566.1,2.80416]
[1733235384191,1.5595,3566.9,3565.7,1.5988]
[1733235384192,1.5595,3566.9,3566.2,0.28275058]
[1733235384341,1.5595,3566.9,3565.9,2.80426]
[1733235384536,1.5595,3566.9,3565.8,2.80441]
[1733235384990,1.5595,3566.9,3565.5,0.02334487]
[1733235385141,1.5595,3566.9,3565.4,0.02334145]
[1733235385342,1.5595,3566.9,3565.7,2.80442]
[1733235385572,1.5595,3566.9,3565.8,3.084822]
[1733235386082,1.5595,3566.9,3565.8,0.280442]
[1733235386292,0.03505125,3566.8,3565.1,2.80496]
[1733235386597,1.5019,3566.7,3565.2,0.02335882]
[1733235387179,1.5019,3567.1,3565.4,1.5921]
[1733235387340,1.5019,3567.1,3565.2,0.02335882]
[1733235387341,1.5019,3567.1,3565.5,0.02333637]
[1733235387544,1.5019,3567.1,3565.6,0.0233429]
[1733235387743,1.5019,3567.1,3566.0,2.80423]
[1733235387939,1.5019,3567.1,3565.5,0.18488092]
[1733235388145,1.5019,3567.1,3565.5,0.16154364]
[1733235388449,0.03504574,3567.0,3565.5,0.16154364]
[1733235388642,1.5019,3567.1,3565.7,2.80449]
[1733235388849,0.03504575,3567.0,3565.8,0.29660336]
[1733235389045,3.55,3567.4,3565.8,0.29660336]
[1733235389283,1.6533,3567.1,3565.8,0.29660336]
[1733235389687,1.68834743,3567.0,3565.8,0.29660336]
[1733235389905,1.5536,3566.9,3565.5,0.16154364]
[1733235390122,1.5536,3566.5,3564.6,3.08819799]
[1733235390402,1.5536,3566.5,3565.2,2.80485]
[1733235390606,1.5536,3566.5,3565.3,0.02335895]
[1733235390803,1.5536,3566.5,3565.4,0.02335895]
[1733235391010,1.5536,3566.5,3564.6,3.63669791]
[1733235391011,1.5536,3566.5,3564.8,2.8052]
[1733235391168,1.5536,3566.5,3566.1,2.80418]
[1733235391503,1.5536,3566.5,3564.9,0.82834257]
[1733235391504,0.36944614,3567.5,3566.2,0.02334642]
[1733235391801,1.6469,3567.4,3565.6,0.55]
[1733235391960,1.6469,3567.4,3566.5,2.80385]
[1733235392168,1.6469,3567.4,3566.8,2.80362]
[1733235392475,1.6469,3567.4,3566.9,0.0233292]
[1733235392773,1.6469,3567.4,3566.3,4.36021]
[1733235392774,1.6469,3567.4,3566.3,1.5562]
[1733235392964,1.6469,3567.4,3566.4,2.82724006]
[1733235393197,1.6469,3567.4,3566.6,2.80378]
[1733235393399,1.6469,3567.4,3566.4,3.35393]
[1733235393635,1.6469,3567.4,3566.5,0.491013]
[1733235395302,1.6469,3567.4,3566.4,0.57332842]
[1733235395534,1.6469,3567.4,3566.4,0.55]
[1733235395735,1.6469,3567.4,3566.5,0.57332715]
[1733235395895,1.5505,3567.8,3566.5,0.57332715]
[1733235396101,4.39003557,3569.2,3566.7,3.35371]
[1733235396297,1.5505,3569.1,3567.0,3.3534]
[1733235396500,1.5505,3569.1,3567.1,2.80337]
[1733235396741,1.5505,3569.1,3567.0,0.57331053]
[1733235396742,1.5505,3569.1,3567.2,2.82662054]
[1733235396950,1.5505,3569.1,3567.2,0.02331054]
[1733235397163,1.6,3569.7,3567.7,4.39003557]
[1733235397307,1.6,3569.7,3567.9,0.55]
[1733235397641,0.03502049,3569.6,3567.9,0.55]
[1733235398356,0.03502049,3569.6,3567.6,2.82629424]
[1733235398357,0.03502049,3569.6,3567.8,0.55]
[1733235398536,0.03502049,3569.6,3567.9,0.55]
[1733235398717,1.6,3569.7,3567.9,0.55]
[1733235399060,0.0350205,3569.6,3568.0,0.335277]
[1733235399237,1.6554,3569.5,3568.0,0.335277]
[1733235399606,1.6554,3569.5,3567.6,0.57329426]
[1733235400444,1.6554,3569.5,3568.0,1.5768]
[1733235400600,1.6554,3569.5,3568.3,2.80241]
[1733235400951,1.6554,3569.5,3568.4,0.02328948]
[1733235401130,1.6554,3569.5,3568.3,0.55]
[1733235401318,1.6554,3569.5,3568.5,0.55]
[1733235401516,1.6554,3569.5,3568.8,2.80198]
[1733235401731,1.5254,3570.6,3568.7,0.55]
[1733235401898,1.5254,3570.6,3568.8,2.80199]
[1733235402105,1.5254,3570.6,3568.9,4.36201647]
[1733235402345,1.5254,3570.6,3569.1,2.80181]
[1733235402500,1.5254,3570.6,3569.2,0.02327315]
[1733235402703,1.5254,3570.6,3569.1,2.80181]
[1733235402903,1.5254,3570.6,3569.2,0.02327294]
[1733235403104,1.5254,3570.6,3569.1,2.80181]
[1733235403343,1.5254,3570.6,3569.2,0.47748117]
[1733235403550,1.5254,3570.6,3569.3,0.02327294]
[1733235403843,1.5254,3570.6,3569.2,0.47748117]
[1733235403844,1.5254,3570.6,3569.5,2.80149]
[1733235404266,1.5254,3570.6,3569.6,2.80141]
[1733235404475,1.5254,3570.6,3569.7,2.80134]
[1733235404640,1.5254,3570.6,3569.8,0.280134]
[1733235405537,1.5254,3570.6,3569.5,2.8015]
[1733235405742,1.5254,3570.6,3569.4,0.54813737]
[1733235405972,1.5254,3570.6,3568.5,0.55]
[1733235405973,1.69900757,3570.5,3568.4,0.39393644]
[1733235406174,1.664,3570.5,3568.7,0.55762091]
[1733235406331,1.664,3570.5,3569.0,2.8019]
[1733235406665,1.664,3570.5,3569.1,0.30346558]
[1733235406876,1.664,3570.5,3569.1,0.02327558]
[1733235407083,1.664,3570.5,3569.5,2.80148]
[1733235407249,1.664,3570.5,3568.8,0.02326886]
[1733235407447,1.664,3570.5,3568.9,0.57327565]
[1733235407776,1.664,3570.5,3569.6,2.80143]
[1733235408079,1.664,3570.5,3569.7,0.280143]
[1733235408290,1.664,3570.5,3569.8,2.8012]
[1733235408443,1.664,3570.5,3569.7,1.401448]
[1733235408775,1.664,3570.5,3569.8,0.02326803]
[1733235408987,1.664,3570.5,3569.9,0.0232677]
[1733235409291,1.664,3570.5,3569.8,2.8012]
[1733235409440,1.6337,3571.1,3569.9,2.80116]
[1733235409640,1.6337,3571.1,3570.0,2.80112]
[1733235409850,1.6337,3571.1,3570.6,2.80064]
[1733235410082,1.6337,3571.1,3570.1,0.44248803]
[1733235410374,0.59134557,3572.6,3570.2,1.12511023]
[1733235410375,1.6316,3571.7,3570.2,1.12511023]
[1733235410583,1.6316,3571.7,3570.5,4.32042]
[1733235410879,1.6316,3571.7,3571.1,2.80021]
[1733235411037,1.6316,3571.7,3570.6,0.35575759]
[1733235411038,1.6316,3571.7,3571.2,0.280021]
[1733235411243,0.02467514,3571.6,3571.1,2.8002]
[1733235411489,1.6316,3571.7,3571.1,2.8002]
[1733235411777,1.6316,3571.7,3570.5,1.5197]
[1733235412088,4.75192712,3572.7,3570.5,1.54294169]
[1733235412286,4.6421,3572.6,3571.2,2.80014]
[1733235412444,0.02574367,3572.5,3571.2,2.80014]
[1733235413037,0.02574367,3572.5,3571.0,2.80032]
[1733235413038,0.06073287,3572.5,3571.0,2.80032]
[1733235413391,1.6421,3572.4,3571.0,2.80032]
[1733235413678,1.6421,3572.4,3570.7,0.02323166]
[1733235413679,0.02568819,3572.3,3570.9,2.80038]
[1733235413890,0.02568819,3572.3,3571.0,3.10589672]
[1733235414040,0.02568819,3572.3,3571.0,0.30559672]
[1733235414241,0.02568819,3572.3,3571.2,2.8001]
[1733235414471,0.02568819,3572.3,3571.0,3.08267152]
[1733235414679,0.02568819,3572.3,3571.0,0.28236152]
[1733235414981,0.02568819,3572.3,3571.1,0.30827515]
[1733235415346,0.02568819,3572.3,3571.2,0.02323505]
[1733235415547,0.02568819,3572.3,3570.5,4.32036]
[1733235415548,0.02568819,3572.3,3570.6,0.02323504]
[1733235415749,1.6295,3572.2,3570.6,2.80062]
[1733235416173,0.02703758,3572.1,3570.6,2.80062]
[1733235416368,1.5729,3572.0,3570.6,2.80062]
[1733235416684,0.02641046,3571.9,3570.7,0.280062]
[1733235416980,1.5729,3572.0,3570.7,0.280062]
[1733235417284,0.02642853,3571.9,3570.7,0.280062]
[1733235417787,0.02642853,3571.9,3570.9,2.80038]
[1733235417971,0.02642853,3571.9,3571.0,2.80025]
[1733235418214,0.02642853,3571.9,3571.1,0.280025]
[1733235418547,0.02642853,3571.9,3570.6,2.80064]
[1733235418753,1.5729,3572.0,3571.2,2.80016]
[1733235419057,1.5729,3572.0,3571.3,2.80009]
[1733235419277,1.5729,3572.0,3570.9,1.66163826]
[1733235419514,1.5729,3572.0,3571.4,2.80001]
[1733235419683,1.5729,3572.0,3571.5,0.280001]
[1733235420620,1.5729,3572.0,3570.9,2.19570938]
[1733235420621,1.5729,3572.0,3571.0,2.80033]
[1733235420924,1.5729,3572.0,3571.4,2.79999]
[1733235421097,1.6561,3572.7,3571.7,2.79978]
[1733235421297,1.6561,3572.7,3571.4,2.80002]
[1733235421521,1.6561,3572.7,3571.8,2.79964]
[1733235421825,1.6561,3572.7,3570.9,2.19570938]
[1733235421826,1.7192466,3573.2,3572.5,2.79913]
[1733235422012,1.7192466,3573.2,3572.7,2.79893]
[1733235422215,1.7192466,3573.2,3572.0,1.6047]
[1733235422385,1.7192466,3573.2,3572.4,2.79923]
[1733235422593,1.7192466,3573.2,3572.5,0.279923]
[1733235422827,1.7192466,3573.2,3572.1,0.02321251]
[1733235423027,0.1512466,3573.2,3572.2,2.79939]
[1733235423487,0.1512466,3573.2,3572.1,0.02320836]
[1733235423687,0.1512466,3573.2,3572.0,2.79948]
[1733235423688,1.6497,3573.1,3572.0,2.79948]
[1733235423896,1.6497,3573.1,3571.9,0.279964]
[1733235424100,1.82979466,3573.1,3571.9,0.279964]
[1733235424329,1.82979466,3573.1,3571.1,4.31202]
[1733235424330,1.6156,3572.6,3571.1,4.31202]
[1733235424533,1.6156,3572.6,3571.1,2.80022]
[1733235424685,1.6156,3572.6,3570.8,0.58152223]
[1733235424889,1.6156,3572.6,3571.0,2.80033]
[1733235425249,1.6156,3572.6,3571.1,0.61823028]
[1733235425537,1.6156,3572.6,3571.2,0.02323205]
[1733235425750,1.6156,3572.6,3571.6,1.6123]
[1733235425889,1.5707,3573.1,3571.7,0.02321598]
[1733235426285,1.5707,3573.1,3572.4,2.79916]
[1733235426591,0.1512466,3573.2,3573.1,2.79869]
[1733235426818,0.1512466,3573.2,3573.1,2.82188917]
[1733235427040,0.1512466,3573.2,3573.1,3.37188917]
[1733235427326,0.75,3573.8,3573.7,2.79822]
[1733235428089,0.75,3573.8,3573.2,1.6424]
[1733235428329,0.75,3573.8,3573.6,2.79822]
[1733235428928,0.75,3573.8,3573.7,2.79822]
[1733235429714,1.6342,3575.6,3573.8,0.55]
[1733235429920,1.6342,3575.6,3574.6,2.79751]
[1733235430145,1.6342,3575.6,3574.7,0.02316855]
[1733235430447,0.1512466,3576.7,3575.3,2.79694]
[1733235430448,1.5493,3576.6,3575.3,2.79694]
[1733235430731,1.5493,3576.6,3575.4,0.02315078]
[1733235430950,1.5493,3576.6,3575.3,1.6593]
[1733235430951,0.02487513,3576.5,3575.3,1.6593]
[1733235431109,1.5493,3576.6,3575.0,0.02314784]
[1733235431309,1.5493,3576.6,3575.1,0.56968856]
[1733235431509,1.5493,3576.6,3575.3,2.79691]
[1733235431823,1.5493,3576.6,3575.7,2.79664]
[1733235432007,1.5493,3576.6,3575.8,2.79656]
[1733235432214,1.5493,3576.6,3575.9,2.81963673]
[1733235432409,1.5493,3576.6,3575.8,2.7965]
[1733235432636,0.1512466,3576.7,3575.9,0.02314663]
[1733235432843,0.1512466,3576.7,3575.4,0.33897438]
[1733235432844,0.1512466,3576.7,3575.7,2.81971649]
[1733235433054,0.1512466,3576.7,3575.8,0.28197165]
[1733235433255,0.1512466,3576.7,3575.4,3.13578438]
[1733235433256,0.1512466,3576.7,3575.5,0.0231484]
[1733235433459,1.603,3576.6,3575.5,0.0231484]
[1733235433753,1.62834474,3576.6,3575.5,0.0231484]
[1733235434165,1.62834474,3576.6,3575.9,2.79649]
[1733235434325,1.62834474,3576.6,3575.9,3.076139]
[1733235434545,1.62834474,3576.6,3575.4,0.33897438]
[1733235434717,0.03494951,3576.5,3575.1,0.56968856]
[1733235434916,1.603,3576.2,3574.5,0.02315606]
[1733235435226,4.35829594,3576.4,3574.2,2.79781]
[1733235435227,1.603,3575.7,3574.2,2.79781]
[1733235435414,1.603,3575.7,3574.0,0.54742276]
[1733235435615,1.603,3575.5,3574.1,0.21145228]
[1733235435926,1.62475572,3575.4,3574.1,3.00934228]
[1733235436148,1.62475572,3575.4,3574.2,0.02317627]
[1733235436450,1.62475572,3575.4,3574.4,2.79765]
[1733235436657,1.62475572,3575.4,3573.6,1.66450969]
[1733235436658,1.62475572,3575.4,3573.8,0.55979928]
[1733235436817,1.5995,3575.2,3573.6,1.66450969]
[1733235437012,1.5995,3575.0,3573.6,1.66450969]
[1733235437447,1.5995,3575.0,3573.7,0.02318487]
[1733235437612,0.02470619,3574.9,3573.7,0.02318487]
[1733235437816,0.02470619,3574.9,3573.6,1.66450969]
[1733235437817,1.5956,3574.8,3573.6,1.66450969]
[1733235438049,1.5956,3574.8,3573.8,2.79813]
[1733235438346,1.5956,3574.8,3573.7,0.44628097]
[1733235438347,0.02469861,3574.7,3573.7,0.44628097]
[1733235438755,1.5956,3574.8,3573.6,1.66450969]
[1733235438946,0.02451355,3574.6,3573.6,1.66450969]
[1733235439262,0.02452948,3574.6,3573.7,0.02318695]
[1733235439461,1.5956,3574.8,3573.7,0.02318695]
[1733235439661,0.02457402,3574.7,3573.8,0.023187]
[1733235439986,0.02457402,3574.7,3573.9,0.44858967]
[1733235440303,0.02457402,3574.7,3573.7,0.023187]
[1733235440443,0.02457402,3574.7,3573.6,1.66450969]
[1733235440956,0.02457402,3574.7,3573.7,0.02318491]
[1733235441142,0.02457402,3574.7,3573.6,1.66450969]
[1733235441349,0.02457402,3574.7,3573.7,0.02318578]
[1733235441571,0.02457402,3574.7,3574.0,2.79797]
[1733235441746,0.02457402,3574.7,3573.8,0.16876955]
[1733235442187,0.02457402,3574.7,3573.9,0.02318336]
[1733235442583,0.02457402,3574.7,3573.9,2.79806]
[1733235442907,1.5956,3574.8,3574.2,2.79782]
[1733235443106,1.5956,3574.8,3573.9,2.79801]
[1733235443318,0.02488768,3574.7,3573.9,0.46312892]
[1733235443513,0.02488768,3574.7,3573.8,0.16876955]
[1733235444018,0.02488768,3574.7,3573.8,0.19195477]
[1733235444169,0.02488768,3574.7,3573.8,2.99009477]
[1733235444369,0.02488768,3574.7,3573.9,2.79806]
[1733235444614,0.02488768,3574.7,3573.8,0.19195473]
[1733235444787,0.02488768,3574.7,3573.6,1.66450969]
[1733235445117,1.5689,3574.6,3573.6,1.66450969]
[1733235445288,1.5689,3574.6,3573.7,0.02319466]
[1733235445488,1.59341171,3574.6,3573.7,0.02319466]
[1733235445701,1.59341171,3574.6,3573.4,2.79844]
[1733235445702,1.59341171,3574.6,3573.5,0.02319468]
[1733235445909,1.59341171,3574.6,3573.5,2.82155468]
[1733235446132,1.5689,3574.6,3573.6,0.02319468]
[1733235446331,1.5689,3574.6,3573.5,3.10372013]
[1733235446502,1.5689,3574.6,3573.1,0.57047901]
[1733235446705,1.5517,3574.4,3572.6,1.6501]
[1733235447004,1.5517,3574.1,3572.3,2.79931]
[1733235447203,1.5517,3574.1,3572.4,2.79916]
[1733235447518,1.5517,3574.1,3572.4,0.02319967]
[1733235447718,1.5517,3574.1,3572.5,0.22346994]
[1733235447877,1.5517,3574.1,3572.6,0.0232028]
[1733235448074,1.5517,3574.1,3572.5,0.22346994]
[1733235448333,0.58497479,3574.0,3572.3,0.56139976]
[1733235448488,1.5746,3573.9,3572.4,0.02321553]
[1733235448678,1.5746,3573.9,3572.6,2.79902]
[1733235448881,1.5746,3573.9,3572.6,2.82222775]
[1733235449084,1.5746,3573.9,3572.8,2.7989]
[1733235449282,2.0686,3573.8,3572.3,0.56139976]
[1733235449479,1.5186,3573.7,3572.1,2.79941]
[1733235449695,1.5186,3573.7,3572.2,2.82257544]
[1733235450124,1.5186,3573.7,3572.4,2.79922]
[1733235450291,1.5186,3573.7,3572.5,0.02321548]
[1733235450497,1.6196,3573.6,3572.5,0.02321548]
[1733235451241,1.6063,3573.4,3571.3,1.5566]
[1733235451538,1.6063,3573.4,3572.0,2.79952]
[1733235451845,1.6063,3573.0,3571.4,2.79997]
[1733235452000,3.0,3572.7,3571.0,2.80025]
[1733235452203,3.0,3572.7,3571.1,2.16657362]
[1733235452204,1.6063,3572.2,3571.1,2.16657362]
[1733235452522,1.6063,3572.2,3571.1,1.66356969]
[1733235452697,1.6063,3572.2,3571.2,2.8234122]
[1733235452897,1.6063,3572.2,3571.4,2.80001]
[1733235453099,1.6063,3572.2,3571.5,0.02323543]
[1733235453381,1.6063,3572.2,3571.7,2.7997]
[1733235453555,1.6063,3572.2,3571.1,1.66356969]
[1733235453717,1.6063,3572.2,3571.6,2.79979]
[1733235453905,1.6063,3572.2,3571.6,0.02323377]
[1733235454304,1.6063,3572.2,3571.5,2.79994]
[1733235454546,1.6063,3572.2,3572.0,2.79954]
[1733235454697,1.6063,3572.2,3571.8,2.7997]
[1733235454901,1.6063,3572.2,3571.5,2.79987]
[1733235455225,1.6063,3572.2,3571.5,0.3246253]
[1733235455428,1.5,3573.1,3571.6,0.02323399]
[1733235455624,1.5,3573.1,3571.4,2.79995]
[1733235455625,1.5,3573.1,3571.8,2.79969]
[1733235455833,0.03498788,3573.0,3571.8,2.79969]
[1733235456044,1.5,3573.0,3571.2,0.44638297]
[1733235456203,1.5,3572.6,3571.1,1.66356969]
[1733235456403,1.5,3572.3,3571.1,1.66356969]
[1733235456630,1.5,3572.2,3571.1,1.66356969]
[1733235457252,1.5,3572.0,3571.1,1.66356969]
[1733235457967,4.5502,3571.7,3570.6,0.02432236]
[1733235458272,4.6239,3571.6,3570.6,0.02432236]
[1733235458430,1.6239,3571.6,3570.6,2.82496236]
[1733235458767,1.6239,3571.6,3570.7,2.823813]
[1733235458971,1.6239,3571.6,3571.1,2.80018]
[1733235459286,1.6239,3571.6,3570.7,2.823773]
[1733235459287,1.6239,3571.6,3570.7,2.80057]
[1733235459430,1.6239,3571.6,3570.9,2.80038]
[1733235459623,1.6239,3571.6,3570.6,0.3068186]
[1733235459624,1.6239,3571.6,3571.0,0.02324942]
[1733235459940,1.6239,3571.6,3570.8,2.80049]
[1733235460322,1.78629,3571.6,3570.6,0.02432236]
[1733235460541,1.5775,3571.5,3570.6,0.02432236]
[1733235461653,0.03500237,3571.4,3570.6,0.02432236]
[1733235461827,1.5775,3571.2,3570.6,0.02432236]
[1733235464124,6.90993242,3570.7,3570.6,0.02432236]
[1733235464365,9.77162566,3570.7,3570.6,0.02432236]
[1733235464693,0.55,3570.4,3568.2,1.60288243]
[1733235464875,1.6443,3569.9,3568.3,2.80239]
[1733235465026,1.6443,3569.9,3568.6,0.55296334]
[1733235465377,1.6443,3569.5,3567.7,0.02329002]
[1733235465527,1.66,3569.4,3568.3,2.80241]
[1733235465727,1.66,3569.4,3568.2,0.5591323]
[1733235465728,1.66,3569.4,3568.4,1.121737]
[1733235465962,1.66,3569.4,3568.4,2.80237]
[1733235466528,1.6053,3569.3,3568.4,2.80237]
[1733235466727,1.6053,3569.3,3568.2,1.14504081]
[1733235466970,1.6053,3569.3,3568.4,2.80233]
[1733235467182,1.6053,3569.3,3568.2,3.924266]
[1733235467469,1.76583,3569.3,3568.2,2.80252]
[1733235468231,1.76583,3569.3,3568.1,1.12182]
[1733235468232,1.66492335,3569.2,3568.1,1.12182]
[1733235468426,0.16053,3569.3,3568.1,1.12182]
[1733235468427,1.6299,3569.0,3568.1,1.12182]
[1733235468678,1.6299,3568.8,3567.3,0.02331116]
[1733235469178,1.6299,3568.8,3567.3,0.57427132]
[1733235469472,1.6299,3568.8,3567.3,2.82650116]
[1733235469669,1.6299,3568.8,3567.6,2.803]
[1733235469879,1.6299,3568.8,3567.7,2.8029]
[1733235470030,1.6299,3568.8,3567.2,1.121978]
[1733235470031,1.5494,3568.7,3567.5,2.80306]
[1733235470462,4.3686744,3568.6,3567.3,0.02331558]
[1733235470677,1.5494,3568.5,3567.5,2.80304]
[1733235470976,1.5494,3568.5,3567.3,0.02331558]
[1733235471141,1.5494,3568.5,3567.6,2.80299]
[1733235471474,1.5494,3568.5,3568.1,2.80258]
[1733235471688,1.5494,3568.5,3567.7,0.02331564]
[1733235471835,1.5494,3568.5,3567.8,2.80284]
[1733235472651,1.5494,3568.5,3567.2,3.925228]
[1733235472856,1.5494,3568.5,3567.3,0.02331143]
[1733235473349,1.5494,3568.5,3567.8,2.80283]
[1733235473793,1.5494,3568.5,3567.9,0.02331141]
[1733235473962,1.5494,3568.5,3567.5,1.5444]
[1733235474158,1.5494,3568.5,3567.6,0.02330876]
[1733235474361,1.5494,3568.5,3567.5,1.5444]
[1733235474362,1.5494,3568.5,3568.1,2.80259]
[1733235474853,0.56179081,3569.6,3568.2,0.02330691]
[1733235474854,1.548,3569.5,3568.2,0.02330691]
[1733235475090,1.548,3569.5,3568.7,2.8021]
[1733235475299,1.548,3569.5,3568.1,0.56637137]
[1733235475300,1.548,3569.5,3568.6,2.80219]
[1733235475588,1.548,3569.5,3568.4,2.80235]
[1733235475756,1.548,3569.5,3568.1,3.36891137]
[1733235475954,1.548,3569.5,3567.9,2.80274]
[1733235476264,1.5223,3569.0,3568.0,2.80266]
[1733235476592,1.55732567,3569.0,3567.9,0.3237472]
[1733235476769,1.55732567,3569.0,3567.8,0.434732]
[1733235476770,1.5223,3568.9,3567.8,0.434732]
[1733235476969,1.5223,3568.9,3567.9,2.80275]
[1733235477153,4.5223,3568.9,3568.0,2.80268]
[1733235477354,4.5223,3568.9,3567.3,0.02331083]
[1733235477355,1.5223,3568.9,3567.7,2.80292]
[1733235477590,1.5223,3568.9,3567.4,0.02330808]
[1733235477783,1.5223,3568.9,3567.8,2.80283]
[1733235477978,1.5594,3568.8,3567.8,2.80283]
[1733235478292,1.5594,3568.8,3567.9,2.80274]
[1733235478469,1.5594,3568.8,3567.9,2.80269]
[1733235478653,1.5594,3568.8,3567.5,2.80308]
[1733235478858,1.5594,3568.8,3567.8,2.80277]
[1733235479092,1.5594,3568.8,3567.9,2.80275]
[1733235479895,1.5594,3568.8,3567.9,2.80276]
[1733235480051,1.5594,3568.8,3567.3,2.80318]
[1733235480052,1.5594,3568.8,3568.1,2.8026]
[1733235480258,1.5594,3568.8,3567.7,2.80291]
[1733235480456,1.5594,3568.8,3568.0,2.80262]
[1733235480698,1.5594,3568.8,3568.0,2.80267]
[1733235480898,1.5594,3568.8,3568.1,2.8026]
[1733235481195,1.5594,3568.8,3567.8,0.280291]
[1733235481196,1.5594,3568.8,3568.3,2.80243]
[1733235481401,1.5594,3568.8,3568.3,2.80238]
[1733235481696,1.5594,3568.8,3568.3,2.8024]
[1733235482058,1.5594,3568.8,3568.1,2.80259]
[1733235482370,1.5594,3568.8,3568.4,2.8023]
[1733235482569,1.5594,3568.8,3568.1,0.33392349]
[1733235482771,1.5594,3568.8,3568.2,2.80246]
[1733235483097,1.5594,3568.8,3568.3,0.02330475]
[1733235483300,1.5594,3568.8,3568.3,2.82573475]
[1733235483528,1.5594,3568.8,3568.5,2.80223]
[1733235483688,1.5594,3568.8,3568.3,0.02330475]
[1733235483883,1.5594,3568.8,3566.5,5.80383]
[1733235483884,1.5594,3568.8,3567.6,0.55]
[1733235484080,1.5594,3568.8,3568.4,2.80233]
[1733235484609,1.6041,3569.9,3568.5,0.02330343]
[1733235484904,1.6041,3569.4,3567.9,0.57050803]
[1733235485411,1.6041,3569.4,3568.1,2.80261]
[1733235485702,1.6041,3569.4,3569.2,2.80171]
[1733235485905,1.6041,3569.4,3568.8,2.80203]
[1733235486060,1.6041,3569.4,3568.8,0.280203]
[1733235486258,1.6041,3569.4,3567.9,2.12730803]
[1733235486459,0.03502086,3569.3,3567.9,0.57050803]
[1733235486691,1.5469,3569.4,3568.1,2.80253]
[1733235486893,4.3686744,3569.6,3567.9,0.57050803]
[1733235486894,1.641,3569.2,3567.9,2.80273]
[1733235487215,1.641,3569.0,3567.5,1.5568]
[1733235487375,1.641,3569.0,3567.8,2.80279]